[Event "Titled Tuesday Blitz January 31 Early 2023"]
[White "Ristic, Nebojsa B"]
[Black "Melikhov, Evgeny V."]
[WhiteFideId "935468"]
[BlackFideId "4122046"]
[WhiteElo "2236"]
[BlackElo "2269"]
[Result "1-0"]
[Round "05"]
[TimeControl "180+2"]
[Date "2023.01.31"]
[WhiteClock "0:00:16"]
[BlackClock "0:00:13"]

1. d4 {[%clk 0:03:00]}  Nf6 {[%clk 0:02:59]} 2. Bf4 {[%clk 0:02:58]}  d5 {[%clk 0:02:58]} 3. e3 {[%clk 0:02:58]}  c5 {[%clk 0:02:59]} 4. Nf3 {[%clk 0:02:58]}  Nc6 {[%clk 0:02:54]} 5. Nbd2 {[%clk 0:02:58]}  cxd4 {[%clk 0:02:53]} 6. exd4 {[%clk 0:02:57]}  Bf5 {[%clk 0:02:52]} 7. c3 {[%clk 0:02:52]}  e6 {[%clk 0:02:51]} 8. Qb3 {[%clk 0:02:51]}  Bd6 {[%clk 0:02:32]} 9. Qxb7 {[%clk 0:02:44]}  Bxf4 {[%clk 0:02:24]} 10. Qxc6+ {[%clk 0:02:42]}  Kf8 {[%clk 0:02:23]} 11. Be2 {[%clk 0:02:27]}  Rb8 {[%clk 0:02:04]} 12. Nb3 {[%clk 0:02:23]}  g5 {[%clk 0:01:36]} 13. Ne5 {[%clk 0:02:13]}  Kg7 {[%clk 0:01:15]} 14. g3 {[%clk 0:02:03]}  Bxe5 {[%clk 0:01:14]} 15. dxe5 {[%clk 0:02:04]}  Ne4 {[%clk 0:01:12]} 16. f3 {[%clk 0:01:45]}  g4 {[%clk 0:00:44]} 17. fxe4 {[%clk 0:01:41]}  Bxe4 {[%clk 0:00:44]} 18. O-O {[%clk 0:01:39]}  Qg5 {[%clk 0:00:40]} 19. Qc5 {[%clk 0:01:15]}  Qxe5 {[%clk 0:00:36]} 20. Qd4 {[%clk 0:01:03]}  Qxd4+ {[%clk 0:00:35]} 21. cxd4 {[%clk 0:01:04]}  f5 {[%clk 0:00:35]} 22. Rac1 {[%clk 0:00:59]}  Kf6 {[%clk 0:00:32]} 23. Rc6 {[%clk 0:00:42]}  Rb6 {[%clk 0:00:29]} 24. Rfc1 {[%clk 0:00:40]}  Rhb8 {[%clk 0:00:25]} 25. Rxb6 {[%clk 0:00:32]}  Rxb6 {[%clk 0:00:24]} 26. Rc5 {[%clk 0:00:30]}  h5 {[%clk 0:00:22]} 27. Kf2 {[%clk 0:00:29]}  Bb1 {[%clk 0:00:22]} 28. Ra5 {[%clk 0:00:19]}  Bxa2 {[%clk 0:00:20]} 29. Rxa2 {[%clk 0:00:16]}  Rxb3 {[%clk 0:00:21]} 30. Ke1 {[%clk 0:00:16]}  a5 {[%clk 0:00:20]} 31. Kd2 {[%clk 0:00:16]}  a4 {[%clk 0:00:18]} 32. Bd1 {[%clk 0:00:15]}  Rb4 {[%clk 0:00:18]} 33. Kc3 {[%clk 0:00:15]}  Rc4+ {[%clk 0:00:17]} 34. Kd3 {[%clk 0:00:16]}  Rc1 {[%clk 0:00:17]} 35. Kd2 {[%clk 0:00:16]}  Rc4 {[%clk 0:00:17]} 36. Kd3 {[%clk 0:00:16]}  Rc1 {[%clk 0:00:17]} 37. Ke2 {[%clk 0:00:14]}  Rc4 {[%clk 0:00:16]} 38. Rxa4 {[%clk 0:00:14]}  Rc1 {[%clk 0:00:16]} 39. Kd2 {[%clk 0:00:14]}  Rc7 {[%clk 0:00:15]} 40. b4 {[%clk 0:00:13]}  h4 {[%clk 0:00:16]} 41. b5 {[%clk 0:00:12]}  h3 {[%clk 0:00:15]} 42. b6 {[%clk 0:00:12]}  Rb7 {[%clk 0:00:15]} 43. Rb4 {[%clk 0:00:13]}  Ke7 {[%clk 0:00:15]} 44. Be2 {[%clk 0:00:13]}  Kd6 {[%clk 0:00:14]} 45. Ba6 {[%clk 0:00:14]}  Rb8 {[%clk 0:00:14]} 46. b7 {[%clk 0:00:14]}  f4 {[%clk 0:00:13]} 47. gxf4 {[%clk 0:00:13]}  Kc7 {[%clk 0:00:13]} 48. Ke3 {[%clk 0:00:13]}  g3 {[%clk 0:00:13]} 49. hxg3 {[%clk 0:00:13]}  h2 {[%clk 0:00:13]} 50. Rb1 {[%clk 0:00:14]}  Rh8 {[%clk 0:00:13]} 51. Rh1 {[%clk 0:00:14]}  Kb8 {[%clk 0:00:13]} 52. Kf3 {[%clk 0:00:15]}  Ka7 {[%clk 0:00:12]} 53. Bb5 {[%clk 0:00:15]}  Kxb7 {[%clk 0:00:12]} 54. Bd7 {[%clk 0:00:15]}  Rh6 {[%clk 0:00:12]} 55. Kg2 {[%clk 0:00:15]}  Kc7 {[%clk 0:00:12]} 56. Ba4 {[%clk 0:00:15]}  Kd6 {[%clk 0:00:11]} 57. Rxh2 {[%clk 0:00:15]}  Rg6 {[%clk 0:00:12]} 58. Kf3 {[%clk 0:00:15]}  Rg7 {[%clk 0:00:12]} 59. Rh6 {[%clk 0:00:15]}  Ra7 {[%clk 0:00:13]} 60. Bc2 {[%clk 0:00:15]}  Ra3+ {[%clk 0:00:14]} 61. Kg4 {[%clk 0:00:15]}  Rc3 {[%clk 0:00:13]} 62. Bf5 {[%clk 0:00:15]}  Rd3 {[%clk 0:00:13]} 63. Rxe6+ {[%clk 0:00:16]} 1-0


[Site "https://www.chess.com"]

[Event "Titled Tuesday Blitz January 31 Early 2023"]
[White "Pace, Christopher"]
[Black "Vovk, Orest"]
[WhiteFideId "2610167"]
[BlackFideId "14113490"]
[WhiteElo "2053"]
[BlackElo "2315"]
[Result "0-1"]
[Round "05"]
[TimeControl "180+2"]
[Date "2023.01.31"]
[WhiteClock "0:00:09"]
[BlackClock "0:01:12"]

1. d4 {[%clk 0:02:58]}  e5 {[%clk 0:02:59]} 2. dxe5 {[%clk 0:02:55]}  Nc6 {[%clk 0:02:55]} 3. Nf3 {[%clk 0:02:55]}  Qe7 {[%clk 0:02:54]} 4. Nc3 {[%clk 0:02:56]}  Nxe5 {[%clk 0:02:49]} 5. Nd5 {[%clk 0:02:56]}  Nxf3+ {[%clk 0:02:49]} 6. gxf3 {[%clk 0:02:57]}  Qd8 {[%clk 0:02:49]} 7. e4 {[%clk 0:02:49]}  Nf6 {[%clk 0:02:46]} 8. Bg5 {[%clk 0:02:45]}  Be7 {[%clk 0:02:46]} 9. Nxe7 {[%clk 0:02:46]}  Qxe7 {[%clk 0:02:46]} 10. Qd4 {[%clk 0:02:46]}  d6 {[%clk 0:02:46]} 11. Rg1 {[%clk 0:02:45]}  Qe5 {[%clk 0:02:44]} 12. Be3 {[%clk 0:02:27]}  O-O {[%clk 0:02:36]} 13. Qxe5 {[%clk 0:02:19]}  dxe5 {[%clk 0:02:36]} 14. Bh6 {[%clk 0:02:11]}  Ne8 {[%clk 0:02:32]} 15. O-O-O {[%clk 0:02:11]}  Be6 {[%clk 0:02:29]} 16. f4 {[%clk 0:01:56]}  Kh8 {[%clk 0:02:24]} 17. Bg5 {[%clk 0:01:50]}  f6 {[%clk 0:02:20]} 18. f5 {[%clk 0:01:39]}  Bxa2 {[%clk 0:02:17]} 19. Be3 {[%clk 0:01:35]}  Bg8 {[%clk 0:02:07]} 20. Bc5 {[%clk 0:01:19]}  Nd6 {[%clk 0:02:07]} 21. Bxd6 {[%clk 0:00:55]}  cxd6 {[%clk 0:02:08]} 22. Rxd6 {[%clk 0:00:55]}  Rfd8 {[%clk 0:02:08]} 23. Rxd8 {[%clk 0:00:55]}  Rxd8 {[%clk 0:02:08]} 24. Bd3 {[%clk 0:00:55]}  Bf7 {[%clk 0:02:02]} 25. Kd2 {[%clk 0:00:51]}  a6 {[%clk 0:01:48]} 26. Ra1 {[%clk 0:00:20]}  h5 {[%clk 0:01:46]} 27. h4 {[%clk 0:00:19]}  g6 {[%clk 0:01:39]} 28. fxg6 {[%clk 0:00:17]}  Bxg6 {[%clk 0:01:40]} 29. Ke3 {[%clk 0:00:17]}  Bf7 {[%clk 0:01:40]} 30. Ra4 {[%clk 0:00:15]}  Rg8 {[%clk 0:01:35]} 31. Rb4 {[%clk 0:00:14]}  b5 {[%clk 0:01:36]} 32. c4 {[%clk 0:00:14]}  Bxc4 {[%clk 0:01:33]} 33. Bxc4 {[%clk 0:00:14]}  bxc4 {[%clk 0:01:34]} 34. Rxc4 {[%clk 0:00:15]}  Rg4 {[%clk 0:01:34]} 35. Rc6 {[%clk 0:00:14]}  Kg7 {[%clk 0:01:33]} 36. Rxa6 {[%clk 0:00:14]}  Rxh4 {[%clk 0:01:34]} 37. Ra7+ {[%clk 0:00:13]}  Kg6 {[%clk 0:01:34]} 38. b4 {[%clk 0:00:14]}  Rh3+ {[%clk 0:01:32]} 39. f3 {[%clk 0:00:14]}  Rh2 {[%clk 0:01:32]} 40. Kd3 {[%clk 0:00:06]}  Rf2 {[%clk 0:01:29]} 41. Kc4 {[%clk 0:00:03]}  Rxf3 {[%clk 0:01:29]} 42. b5 {[%clk 0:00:03]}  Re3 {[%clk 0:01:29]} 43. b6 {[%clk 0:00:03]}  Rxe4+ {[%clk 0:01:29]} 44. Kc5 {[%clk 0:00:03]}  Re1 {[%clk 0:01:28]} 45. b7 {[%clk 0:00:03]}  Rb1 {[%clk 0:01:27]} 46. Kc6 {[%clk 0:00:04]}  e4 {[%clk 0:01:24]} 47. Ra4 {[%clk 0:00:04]}  f5 {[%clk 0:01:20]} 48. Ra6 {[%clk 0:00:04]}  Rxb7 {[%clk 0:01:18]} 49. Kxb7+ {[%clk 0:00:05]}  Kg5 {[%clk 0:01:19]} 50. Kc6 {[%clk 0:00:05]}  h4 {[%clk 0:01:15]} 51. Kd5 {[%clk 0:00:06]}  h3 {[%clk 0:01:15]} 52. Kd4 {[%clk 0:00:06]}  h2 {[%clk 0:01:14]} 53. Ra1 {[%clk 0:00:06]}  Kf4 {[%clk 0:01:14]} 54. Rh1 {[%clk 0:00:06]}  Kg3 {[%clk 0:01:13]} 55. Ke3 {[%clk 0:00:06]}  Kg2 {[%clk 0:01:13]} 56. Rb1 {[%clk 0:00:07]}  h1=Q {[%clk 0:01:12]} 57. Rxh1 {[%clk 0:00:07]}  Kxh1 {[%clk 0:01:12]} 58. Kf4 {[%clk 0:00:08]}  Kg2 {[%clk 0:01:12]} 59. Kxf5 {[%clk 0:00:09]}  Kf3 {[%clk 0:01:12]} 0-1


[Site "https://www.chess.com"]

[Event "Titled Tuesday Blitz January 31 Early 2023"]
[White "Iljin, Timofey"]
[Black "Dos Santos, Emmanuel"]
[WhiteFideId "14110180"]
[BlackFideId "2103559"]
[WhiteElo "2329"]
[BlackElo "2261"]
[Result "1-0"]
[Round "05"]
[TimeControl "180+2"]
[Date "2023.01.31"]
[WhiteClock "0:00:23"]
[BlackClock "0:00:01"]

1. e4 {[%clk 0:03:00]}  c5 {[%clk 0:02:58]} 2. c3 {[%clk 0:03:01]}  Nf6 {[%clk 0:02:58]} 3. e5 {[%clk 0:03:00]}  Nd5 {[%clk 0:02:58]} 4. d4 {[%clk 0:03:01]}  cxd4 {[%clk 0:02:58]} 5. cxd4 {[%clk 0:03:01]}  d6 {[%clk 0:02:57]} 6. Nf3 {[%clk 0:03:01]}  Nc6 {[%clk 0:02:54]} 7. Bc4 {[%clk 0:02:58]}  Nb6 {[%clk 0:02:55]} 8. Bb5 {[%clk 0:02:59]}  a6 {[%clk 0:02:45]} 9. Bxc6+ {[%clk 0:02:52]}  bxc6 {[%clk 0:02:46]} 10. O-O {[%clk 0:02:53]}  g6 {[%clk 0:02:24]} 11. h3 {[%clk 0:02:47]}  Bg7 {[%clk 0:02:24]} 12. Bf4 {[%clk 0:02:46]}  Nd5 {[%clk 0:02:15]} 13. Bg3 {[%clk 0:02:46]}  O-O {[%clk 0:02:14]} 14. Nc3 {[%clk 0:02:45]}  Rb8 {[%clk 0:02:08]} 15. Nxd5 {[%clk 0:02:43]}  cxd5 {[%clk 0:02:09]} 16. b3 {[%clk 0:02:44]}  dxe5 {[%clk 0:02:00]} 17. Bxe5 {[%clk 0:02:34]}  Rb4 {[%clk 0:01:52]} 18. Bxg7 {[%clk 0:02:33]}  Kxg7 {[%clk 0:01:53]} 19. Qd2 {[%clk 0:02:33]}  a5 {[%clk 0:01:48]} 20. Ne5 {[%clk 0:02:28]}  Qd6 {[%clk 0:01:39]} 21. Rac1 {[%clk 0:02:26]}  Bd7 {[%clk 0:01:15]} 22. Rfe1 {[%clk 0:02:13]}  Rc8 {[%clk 0:01:08]} 23. Qe3 {[%clk 0:01:42]}  f6 {[%clk 0:00:34]} 24. Rxc8 {[%clk 0:01:28]}  Bxc8 {[%clk 0:00:33]} 25. Nd3 {[%clk 0:01:27]}  Rb7 {[%clk 0:00:25]} 26. Nc5 {[%clk 0:01:27]}  Rc7 {[%clk 0:00:22]} 27. a3 {[%clk 0:00:48]}  e5 {[%clk 0:00:19]} 28. b4 {[%clk 0:00:48]}  axb4 {[%clk 0:00:19]} 29. axb4 {[%clk 0:00:49]}  Re7 {[%clk 0:00:16]} 30. Qc3 {[%clk 0:00:39]}  exd4 {[%clk 0:00:08]} 31. Rxe7+ {[%clk 0:00:38]}  Qxe7 {[%clk 0:00:08]} 32. Qxd4 {[%clk 0:00:39]}  Qe1+ {[%clk 0:00:06]} 33. Kh2 {[%clk 0:00:39]}  Qe5+ {[%clk 0:00:06]} 34. Qxe5 {[%clk 0:00:39]}  fxe5 {[%clk 0:00:07]} 35. b5 {[%clk 0:00:40]}  d4 {[%clk 0:00:07]} 36. Kg3 {[%clk 0:00:35]}  Kf6 {[%clk 0:00:07]} 37. b6 {[%clk 0:00:33]}  Kf5 {[%clk 0:00:06]} 38. f3 {[%clk 0:00:30]}  h5 {[%clk 0:00:02]} 39. b7 {[%clk 0:00:24]}  Bxb7 {[%clk 0:00:02]} 40. Nxb7 {[%clk 0:00:25]}  d3 {[%clk 0:00:02]} 41. Nd6+ {[%clk 0:00:25]}  Ke6 {[%clk 0:00:02]} 42. Ne4 {[%clk 0:00:26]}  Kf5 {[%clk 0:00:01]} 43. Kh4 {[%clk 0:00:23]} 1-0


[Site "https://www.chess.com"]

[Event "Titled Tuesday Blitz January 31 Early 2023"]
[White "SicilianPanzer"]
[Black "Bilan, Danila"]
[BlackFideId "24161918"]
[WhiteElo "2195"]
[BlackElo "2303"]
[Result "0-1"]
[Round "05"]
[TimeControl "180+2"]
[Date "2023.01.31"]
[WhiteClock "0:00:02"]
[BlackClock "0:00:10"]

1. d4 {[%clk 0:03:00]}  d5 {[%clk 0:02:59]} 2. c4 {[%clk 0:02:59]}  c6 {[%clk 0:02:59]} 3. Nc3 {[%clk 0:02:58]}  Nf6 {[%clk 0:02:59]} 4. Nf3 {[%clk 0:02:58]}  e6 {[%clk 0:02:59]} 5. Ne5 {[%clk 0:02:57]}  Nbd7 {[%clk 0:02:49]} 6. Bf4 {[%clk 0:02:56]}  Nxe5 {[%clk 0:02:44]} 7. dxe5 {[%clk 0:02:54]}  Nd7 {[%clk 0:02:35]} 8. cxd5 {[%clk 0:02:53]}  cxd5 {[%clk 0:02:34]} 9. e4 {[%clk 0:02:53]}  dxe4 {[%clk 0:01:45]} 10. Qa4 {[%clk 0:02:51]}  Qb6 {[%clk 0:01:08]} 11. Bb5 {[%clk 0:02:26]}  a6 {[%clk 0:00:47]} 12. Rd1 {[%clk 0:02:17]}  Qc7 {[%clk 0:00:38]} 13. Nxe4 {[%clk 0:01:48]}  Rb8 {[%clk 0:00:38]} 14. Be2 {[%clk 0:00:58]}  b5 {[%clk 0:00:34]} 15. Qd4 {[%clk 0:00:55]}  Bc5 {[%clk 0:00:22]} 16. Nd6+ {[%clk 0:00:25]}  Qxd6 {[%clk 0:00:22]} 17. Qxd6 {[%clk 0:00:21]}  Bxd6 {[%clk 0:00:22]} 18. Rxd6 {[%clk 0:00:21]}  O-O {[%clk 0:00:14]} 19. O-O {[%clk 0:00:17]}  Nb6 {[%clk 0:00:14]} 20. Rc1 {[%clk 0:00:08]}  Nd5 {[%clk 0:00:12]} 21. Bg3 {[%clk 0:00:09]}  Bb7 {[%clk 0:00:12]} 22. Bf3 {[%clk 0:00:07]}  h6 {[%clk 0:00:12]} 23. Rd7 {[%clk 0:00:06]}  Rfc8 {[%clk 0:00:10]} 24. Rxc8+ {[%clk 0:00:03]}  Rxc8 {[%clk 0:00:11]} 25. h4 {[%clk 0:00:03]}  Bc6 {[%clk 0:00:11]} 26. Ra7 {[%clk 0:00:02]}  Ra8 {[%clk 0:00:07]} 27. Rxa8+ {[%clk 0:00:03]}  Bxa8 {[%clk 0:00:08]} 28. Kf1 {[%clk 0:00:03]}  Bc6 {[%clk 0:00:08]} 29. Ke2 {[%clk 0:00:03]}  Kf8 {[%clk 0:00:07]} 30. Kd3 {[%clk 0:00:02]}  Nb4+ {[%clk 0:00:07]} 31. Kc3 {[%clk 0:00:02]}  Nxa2+ {[%clk 0:00:06]} 32. Kb3 {[%clk 0:00:02]}  Bxf3 {[%clk 0:00:06]} 33. gxf3 {[%clk 0:00:01]}  Nc1+ {[%clk 0:00:06]} 34. Kb4 {[%clk 0:00:01]}  Nd3+ {[%clk 0:00:04]} 35. Kc3 {[%clk 0:00:01]}  Nc5 {[%clk 0:00:03]} 36. Kb4 {[%clk 0:00:01]}  Nb7 {[%clk 0:00:03]} 37. f4 {[%clk 0:00:01]}  Ke7 {[%clk 0:00:03]} 38. f3 {[%clk 0:00:01]}  Kd7 {[%clk 0:00:04]} 39. Bf2 {[%clk 0:00:02]}  Kc6 {[%clk 0:00:05]} 40. Be3 {[%clk 0:00:02]}  a5+ {[%clk 0:00:05]} 41. Kc3 {[%clk 0:00:02]}  Nc5 {[%clk 0:00:06]} 42. Bf2 {[%clk 0:00:01]}  Kd5 {[%clk 0:00:06]} 43. b3 {[%clk 0:00:01]}  b4+ {[%clk 0:00:07]} 44. Kc2 {[%clk 0:00:01]}  a4 {[%clk 0:00:07]} 45. bxa4 {[%clk 0:00:01]}  Nxa4 {[%clk 0:00:08]} 46. Kb3 {[%clk 0:00:02]}  Nc3 {[%clk 0:00:09]} 47. Kxb4 {[%clk 0:00:02]}  Ne2 {[%clk 0:00:10]} 48. Be3 {[%clk 0:00:02]}  Nd4 {[%clk 0:00:10]} 49. Kc3 {[%clk 0:00:01]}  Nxf3 {[%clk 0:00:10]} 50. Kd3 {[%clk 0:00:02]}  Nxh4 {[%clk 0:00:10]} 51. Ke2 {[%clk 0:00:02]}  Nf5 {[%clk 0:00:11]} 52. Kf3 {[%clk 0:00:02]}  Nxe3 {[%clk 0:00:10]} 0-1


[Site "https://www.chess.com"]

[Event "Titled Tuesday Blitz January 31 Early 2023"]
[White "Vetokhin, Ilia"]
[Black "Mitrovic, Darko R"]
[WhiteFideId "24156078"]
[BlackFideId "927023"]
[WhiteElo "2305"]
[BlackElo "2220"]
[Result "1-0"]
[Round "05"]
[TimeControl "180+2"]
[Date "2023.01.31"]
[WhiteClock "0:00:25"]
[BlackClock "0:00:01"]

1. b3 {[%clk 0:03:00]}  d5 {[%clk 0:02:56]} 2. Bb2 {[%clk 0:03:01]}  c5 {[%clk 0:02:50]} 3. Nf3 {[%clk 0:03:01]}  Nc6 {[%clk 0:02:50]} 4. g3 {[%clk 0:03:00]}  Nf6 {[%clk 0:02:51]} 5. Bg2 {[%clk 0:03:01]}  g6 {[%clk 0:02:51]} 6. O-O {[%clk 0:03:01]}  Bg7 {[%clk 0:02:52]} 7. d4 {[%clk 0:03:02]}  cxd4 {[%clk 0:02:50]} 8. Nxd4 {[%clk 0:03:03]}  O-O {[%clk 0:02:51]} 9. c4 {[%clk 0:03:03]}  Nxd4 {[%clk 0:02:41]} 10. Qxd4 {[%clk 0:02:57]}  dxc4 {[%clk 0:02:36]} 11. Qxc4 {[%clk 0:02:47]}  Be6 {[%clk 0:02:34]} 12. Qa4 {[%clk 0:02:23]}  Bd5 {[%clk 0:02:07]} 13. Rd1 {[%clk 0:02:15]}  e6 {[%clk 0:01:44]} 14. e4 {[%clk 0:02:12]}  Bc6 {[%clk 0:01:03]} 15. Rxd8 {[%clk 0:01:59]}  Raxd8 {[%clk 0:01:03]} 16. Qb4 {[%clk 0:01:31]}  Rd1+ {[%clk 0:01:00]} 17. Bf1 {[%clk 0:01:32]}  Nxe4 {[%clk 0:00:53]} 18. Bxg7 {[%clk 0:01:31]}  Kxg7 {[%clk 0:00:47]} 19. Nc3 {[%clk 0:01:30]}  Rxa1 {[%clk 0:00:34]} 20. Nxe4 {[%clk 0:01:31]}  Bxe4 {[%clk 0:00:33]} 21. Qxe4 {[%clk 0:01:32]}  Rxa2 {[%clk 0:00:32]} 22. h4 {[%clk 0:01:25]}  h5 {[%clk 0:00:29]} 23. Bc4 {[%clk 0:01:10]}  Rd8 {[%clk 0:00:17]} 24. Qxb7 {[%clk 0:00:46]}  Rd1+ {[%clk 0:00:12]} 25. Kg2 {[%clk 0:00:46]}  Rdd2 {[%clk 0:00:11]} 26. Qf3 {[%clk 0:00:47]}  a5 {[%clk 0:00:06]} 27. Qf4 {[%clk 0:00:47]}  Rab2 {[%clk 0:00:05]} 28. Qe5+ {[%clk 0:00:39]}  Kf8 {[%clk 0:00:03]} 29. Qe3 {[%clk 0:00:40]}  Kg7 {[%clk 0:00:03]} 30. Qa7 {[%clk 0:00:28]}  Kf8 {[%clk 0:00:01]} 31. Qc5+ {[%clk 0:00:24]}  Kg7 {[%clk 0:00:01]} 32. Kf3 {[%clk 0:00:25]} 1-0


[Site "https://www.chess.com"]

[Event "Titled Tuesday Blitz January 31 Early 2023"]
[White "Toczek, Grzegorz"]
[Black "Ivanova, Karina"]
[WhiteFideId "1106457"]
[BlackFideId "24139750"]
[WhiteElo "2260"]
[BlackElo "2085"]
[Result "1-0"]
[Round "05"]
[TimeControl "180+2"]
[Date "2023.01.31"]
[WhiteClock "0:00:58"]
[BlackClock "0:01:04"]

1. e4 {[%clk 0:03:00]}  c6 {[%clk 0:02:56]} 2. Nc3 {[%clk 0:02:56]}  d5 {[%clk 0:02:55]} 3. Nf3 {[%clk 0:02:56]}  Bg4 {[%clk 0:02:54]} 4. h3 {[%clk 0:02:56]}  Bxf3 {[%clk 0:02:54]} 5. Qxf3 {[%clk 0:02:57]}  e6 {[%clk 0:02:54]} 6. d3 {[%clk 0:02:53]}  Nd7 {[%clk 0:02:53]} 7. Qg3 {[%clk 0:02:51]}  g6 {[%clk 0:02:41]} 8. Bd2 {[%clk 0:02:48]}  Bg7 {[%clk 0:02:40]} 9. h4 {[%clk 0:02:48]}  h5 {[%clk 0:02:39]} 10. Be2 {[%clk 0:02:37]}  Ne7 {[%clk 0:02:37]} 11. O-O {[%clk 0:02:26]}  Qb6 {[%clk 0:02:33]} 12. Rab1 {[%clk 0:02:24]}  O-O-O {[%clk 0:02:21]} 13. Qd6 {[%clk 0:02:20]}  Rhe8 {[%clk 0:02:17]} 14. Qa3 {[%clk 0:02:20]}  Bd4 {[%clk 0:02:11]} 15. Na4 {[%clk 0:02:18]}  Qa6 {[%clk 0:02:01]} 16. c3 {[%clk 0:02:17]}  Bc5 {[%clk 0:01:56]} 17. b4 {[%clk 0:02:06]}  Bd6 {[%clk 0:01:56]} 18. Rfe1 {[%clk 0:02:01]}  Nb6 {[%clk 0:01:52]} 19. Bd1 {[%clk 0:01:53]}  Nxa4 {[%clk 0:01:51]} 20. Qxa4 {[%clk 0:01:52]}  Qxa4 {[%clk 0:01:50]} 21. Bxa4 {[%clk 0:01:52]}  dxe4 {[%clk 0:01:45]} 22. dxe4 {[%clk 0:01:52]}  Bxb4 {[%clk 0:01:40]} 23. Red1 {[%clk 0:01:43]}  Bc5 {[%clk 0:01:39]} 24. Bg5 {[%clk 0:01:34]}  Rxd1+ {[%clk 0:01:27]} 25. Rxd1 {[%clk 0:01:35]}  e5 {[%clk 0:01:27]} 26. Bb3 {[%clk 0:01:28]}  f5 {[%clk 0:01:23]} 27. Be6+ {[%clk 0:01:21]}  Kc7 {[%clk 0:01:20]} 28. Rd7+ {[%clk 0:01:11]}  Kb6 {[%clk 0:01:18]} 29. Bf7 {[%clk 0:01:11]}  Rf8 {[%clk 0:01:12]} 30. Bxe7 {[%clk 0:01:11]}  Bxe7 {[%clk 0:01:08]} 31. Rxe7 {[%clk 0:01:11]}  fxe4 {[%clk 0:01:06]} 32. Bxg6 {[%clk 0:01:11]}  Rf4 {[%clk 0:01:05]} 33. g3 {[%clk 0:01:06]}  Rf3 {[%clk 0:01:05]} 34. Bxh5 {[%clk 0:01:03]}  Rxc3 {[%clk 0:01:05]} 35. Bg6 {[%clk 0:01:02]}  e3 {[%clk 0:01:05]} 36. fxe3 {[%clk 0:01:00]}  Rxe3 {[%clk 0:01:05]} 37. Kf2 {[%clk 0:01:00]}  Ra3 {[%clk 0:01:04]} 38. Bf7 {[%clk 0:00:58]} 1-0


[Site "https://www.chess.com"]